Cogmind - Beta 16 @@@ ROGUE MODE // 2025.12.24 @ 00:01:38 Player: jumpy Result: Destroyed by NF-8IQ(R) with Subdweller Beam Cannon Performance ------------- Evolutions (0) 0 Regions Visited (2) 400 Robots Destroyed (16) 80 Value Destroyed (380) 380 Prototype IDs (0) 0 Alien Tech Used (0) 0 Bonus (0) 0 TOTAL SCORE: 860 Bonus ------- None Cogmind --------- Core Integrity 0/250 Matter 300/300 Energy 100/100 System Corruption 0% Temperature Cool (9) Movement Walking (190) Ox1 Location -10/Subcaves Parts ------- > --- POWER (1) -------- (None) > --- PROPULSION (2) --- Aluminum Leg > --- UTILITY (2) ------ Medium Storage Unit > --- WEAPON (2) ------- Makeshift Axe > --- INVENTORY (10) --- Light Ion Engine Aluminum Leg Aluminum Leg Wheel Wheel Improved Terrain Scanner Seismic Detector Light Assault Rifle Mining Laser Peak State ------------ > --- POWER ------------ Subdweller Power Source > --- PROPULSION ------- Aluminum Leg Makeshift Leg > --- UTILITY ---------- Medium Storage Unit Seismic Detector > --- WEAPON ----------- Subdweller Machine Gun Makeshift Axe > --- INVENTORY -------- Light Ion Engine Aluminum Leg Aluminum Leg Wheel Wheel Improved Terrain Scanner Seismic Detector Light Assault Rifle Mining Laser [Rating: 16] Favorites ----------- Power Ion Engine Engine Ion Engine Propulsion Aluminum Leg Leg Aluminum Leg Utility Seismic Detector Device Seismic Detector Storage Medium Storage Unit Weapon Light Assault Rifle Energy Gun Small Laser Ballistic Gun Light Assault Rifle Slashing Weapon Makeshift Axe Build | -11 -10 -10 ------- Run | Yrd Mat Sub Slots Evolved . | . . . Power . | . . . Propulsion . | . . . Utility . | . . . Weapon . | . . . Parts Attached 13 | 8 1 4 Power 2 | 1 . 1 Engine 2 | 1 . 1 Core . | . . . Reactor . | . . . Propulsion 3 | 2 . 1 Treads . | . . . Leg 3 | 2 . 1 Wheel . | . . . Hover . | . . . Flight . | . . . Utility 3 | 2 1 . Device 1 | 1 . . Storage 2 | 1 1 . Processor . | . . . Hackware . | . . . Protection . | . . . Artifact . | . . . Weapon 5 | 3 . 2 Energy Gun 2 | 2 . . Energy Cannon . | . . . Ballistic Gun 2 | 1 . 1 Ballistic Cannon . | . . . Launcher . | . . . Special Weapon . | . . . Impact Weapon . | . . . Slashing Weapon 1 | . . 1 Piercing Weapon . | . . . Special Melee Weapon . | . . . Unidentified Prototypes . | . . . Parts Lost 5 | . . 5 Power 1 | . . 1 Propulsion 1 | . . 1 Utility 1 | . . 1 Weapon 2 | . . 2 Highest Loss Streak 2 | . . 2 To Critical Strikes . | . . . Average Backups 7 | 2 6 8 Power . | . 1 1 Propulsion 3 | 1 2 3 Utility 1 | . 2 2 Weapon 1 | . 1 1 Tool/Special . | . . . Unused Backups 7 | . . 7 Power 1 | . . 1 Propulsion 3 | . . 3 Utility 2 | . . 2 Weapon 1 | . . 1 Tool/Special . | . . . Average Slot Usage (%) 85 | . 100 78 Engine 11 | . 14 10 Leg 24 | . 28 22 Device 10 | . 14 9 Storage 14 | . 14 14 Energy Gun 6 | . 14 2 Ballistic Gun 10 | . 14 8 Slashing Weapon 6 | . . 9 Peak Build Rating 16 | 7 8 16 Average Rating 8 | 5 7 10 On Entrance 4 | . 7 7 Avg Prop Armor Cover (%) . | . . . Naked Turns . | . . . Heaviest Build 23 | 13 18 23 Greatest Support 30 | 20 20 30 Greatest Overweight (x) 2 | . . 2 Average Overweight (x) . | . . . Largest Inventory Capacity 10 | 8 10 10 Average Capacity 9 | 6 8 10 Most Carried 9 | 6 8 9 Average Carried 7 | 2 6 8 Final Capacity 10 | 8 10 10 Final Carried 9 | 6 7 9 Class Distribution -------------------- 79% | Mutant 20% | Scavenger-Mutant Dominant Class ---------------- Mutant | -10/Materials Mutant | -10/Subcaves Resources | -11 -10 -10 ----------- Run | Yrd Mat Sub Matter Collected 380 | 293 7 80 Remotely . | . . . Salvage Created 649 | 166 149 334 Parts 40 | 12 6 22 Haulers Intercepted 1 | . 1 . Recyclers Shooed 1 | 1 . . Parts Field Recycled . | . . . Retrieved Matter . | . . . Parts Self-Destructed 12 | . . 12 Prevented . | . . . Parts Restored . | . . . Kills | -11 -10 -10 ------- Run | Yrd Mat Sub Combat Hostiles Destroyed 11 | . 2 9 Melee 3 | . . 3 Guns 8 | . 2 6 Classes Destroyed 7 | 2 2 3 Tunneler 3 | 3 . . Hauler 1 | . 1 . Recycler 1 | 1 . . Swarmer 3 | . . 3 Grunt 2 | . 2 . Artisan 1 | . . 1 Subdweller 6 | . . 6 Best Kill Streak 2 | 2 2 2 Combat Bots Only 2 | . 2 2 Max Kills in Single Turn 1 | 1 1 1 Gunslinging . | . . . Exploded . | . . . Melee 1 | . . 1 Uniques/NPCs Destroyed . | . . . Combat | -11 -10 -10 -------- Run | Yrd Mat Sub Hostile Shots Fired 58 | . 9 49 Missed 15 | . 2 13 Hits 43 | . 7 36 Projectile 43 | . 7 36 Critical Strikes 1 | . . 1 Damage Taken 825 | . 89 736 Core 252 | . 10 242 Absorbed by Shields . | . . . Core Remaining (%) 100 | 100 . . Volleys Fired 51 | 13 9 29 Largest 2 | 2 2 2 Hottest 60 | 60 60 60 Shots Fired 81 | 26 17 38 Gun 81 | 26 17 38 Cannon . | . . . Launcher . | . . . Special . | . . . Kinetic 51 | 13 9 29 Thermal 30 | 13 8 9 Explosive . | . . . Electromagnetic . | . . . Robot Hit Streak 13 | 4 5 13 Robot Miss Streak 4 | 2 2 4 Penetration Max . | . . . Secondary Targets . | . . . Shots Hit Robots 69 | 17 10 42 Core Hits 31 | 8 8 15 Critical Kills . | . . . Critical Parts Destroyed 2 | 2 . . Critical Strikes 2 | 2 . . Destroy 2 | 2 . . Melee Attacks 20 | . . 20 Impact . | . . . Slashing 20 | . . 20 Piercing . | . . . Sneak Attacks 1 | . . 1 Combat Hostiles . | . . . Follow-up Attacks . | . . . Damage Inflicted 938 | 148 114 676 Guns 551 | 148 114 289 Cannons . | . . . Explosions . | . . . Melee 387 | . . 387 Ramming . | . . . Kinetic 321 | 72 38 211 Thermal 230 | 76 76 78 Explosive . | . . . Electromagnetic . | . . . Impact . | . . . Slashing 387 | . . 387 Piercing . | . . . Highest Corruption . | . . . Average Corruption . | . . . Corruption Purged . | . . . Corruption Blocked . | . . . Overload Shots . | . . . Overflow Damage 47 | . . 47 Projectiles . | . . . Explosions . | . . . Melee 47 | . . 47 Knockbacks . | . . . Impact . | . . . Kinetic . | . . . Secondary . | . . . Self-Inflicted Damage . | . . . Shots . | . . . Rammed . | . . . Targets Rammed . | . . . Kicked . | . . . Crushed . | . . . Highest Temperature 270 | 40 58 270 Average Temperature 35 | 14 24 139 Received Heat Transfer 423 | . 51 372 Siege Activations . | . . . Martial Activations . | . . . Shielding Activations . | . . . Robots Disrupted . | . . . Combat Hostiles . | . . . Robots Corrupted . | . . . Combat Hostiles . | . . . Parts Fried . | . . . Impact Corruptions . | . . . Robots Melted . | . . . Combat Hostiles . | . . . Parts Melted 2 | . . 2 Heat Transferred 525 | 175 175 175 Parts Sabotaged . | . . . Parts Stolen . | . . . Parts Stripped . | . . . Power Chain Reactions . | . . . Alert | -11 -10 -10 ------- Run | Yrd Mat Sub Maximum Alert Level . | . . . Low Security (%) 100 | 100 100 . Level 1 . | . . . Level 2 . | . . . Level 3 . | . . . Level 4 . | . . . Level 5 . | . . . High Security . | . . . Max Security . | . . . Peak Influence 50 | 5 50 . Initial . | . . . Average 7 | 1 10 . Influence Increases 233 | 20 93 120 Destroy 0b10 Robot/C 100 | . 40 60 Destroy 0b10 Robot/NC 25 | 20 5 . Destroy Leader 12 | . 12 . Successful Hack 6 | . 6 . Lose Combat Pursuer 90 | . 30 60 Influence Decreases 233 | 20 93 120 Time Decay 223 | 20 93 110 Lost Part 10 | . . 10 Squads Dispatched 1 | . 1 . Investigation 1 | . 1 . Extermination . | . . . Reinforcement . | . . . Assault . | . . . Garrison . | . . . Intercept . | . . . Searches Triggered . | . . . Construction Impeded . | . . . Haulers Reinforced . | . . . Active Scanning Responses . | . . . Cargo Convoy Interrupts . | . . . Stealth | -11 -10 -10 --------- Run | Yrd Mat Sub Distress Signals 1 | . 1 . Communications Jammed . | . . . Distress Signals . | . . . Times Spotted 21 | . 7 14 Peak Tracking Total 4 | . 3 4 Tactical Retreats 5 | . 2 3 Traps | -11 -10 -10 ------- Run | Yrd Mat Sub Traps Triggered . | . . . Indirectly . | . . . Trap Hack Attempts . | . . . Triggered . | . . . Disarmed . | . . . Reprogrammed . | . . . Reused . | . . . Traps Extracted . | . . . Installed . | . . . Triggered . | . . . Machines | -11 -10 -10 ---------- Run | Yrd Mat Sub Machines Disabled . | . . . Max in Single Turn . | . . . Machines Repaired . | . . . Machines Dismantled . | . . . Machines Sabotaged . | . . . Overloaded Fab Kills . | . . . Hacking | -11 -10 -10 --------- Run | Yrd Mat Sub Machines Accessed 1 | . 1 . Terminals 1 | . 1 . Fabricators . | . . . Repair Stations . | . . . Recycling Units . | . . . Scanalyzers . | . . . Garrison Access . | . . . Total Hacks 3 | . 3 . Successful 1 | . 1 . Failed 2 | . 2 . Catastrophic . | . . . Database Lockouts . | . . . Manual 3 | . 3 . Terminals 3 | . 3 . Fabricators . | . . . Repair Stations . | . . . Recycling Units . | . . . Scanalyzers . | . . . Garrison Access . | . . . Terminal Hacks . | . . . Fabricator Hacks . | . . . Repair Station Hacks . | . . . Recycling Unit Hacks . | . . . Scanalyzer . | . . . Garrison Access Hacks . | . . . Unauthorized Hacks 1 | . 1 . Terminals 1 | . 1 . Assimilate 1 | . 1 . Fabricators . | . . . Repair Stations . | . . . Recycling Units . | . . . Scanalyzers . | . . . Garrison Access . | . . . Data Cores Recovered . | . . . Used . | . . . Hacking Detections 1 | . 1 . Full Trace Events 1 | . 1 . Feedback Events . | . . . Feedback Blocked . | . . . Robot Schematics Acquired . | . . . Robots Built . | . . . Authchips . | . . . Time . | . . . Total Robot Build Rating . | . . . Part Schematics Acquired . | . . . Parts Built . | . . . Authchips . | . . . Time . | . . . Total Part Build Rating . | . . . Part Studies Acquired . | . . . Parts Repaired . | . . . Time . | . . . Parts Recycled . | . . . Recycled Matter . | . . . Retrieved Matter . | . . . Retrieved Components . | . . . Parts Scanalyzed . | . . . Part Schematics Acquired . | . . . Parts Damaged . | . . . Bothacking | -11 -10 -10 ------------ Run | Yrd Mat Sub Used RIF Installer . | . . . Robots Hacked . | . . . Non-combat . | . . . Combat . | . . . Robot Hacks Applied . | . . . Relay Couplers Released . | . . . Fabnet Peak Effective % . | . . . Robots Rewired . | . . . Allies Hacked . | . . . Hacks Repelled . | . . . Allies | -11 -10 -10 -------- Run | Yrd Mat Sub Total Allies . | . . . Largest Group . | . . . Highest-Rated Group . | . . . Highest-Rated Ally . | . . . Total Orders . | . . . Ally Attacks . | . . . Total Damage . | . . . Kills . | . . . Allies Corrupted . | . . . Allies Melted . | . . . Intel | -11 -10 -10 ------- Run | Yrd Mat Sub Active Infowar (turns) 931 | 69 372 490 Seismic 931 | 69 372 490 Robot Analysis Total . | . . . Derelict Logs Recovered . | . . . Drone Launches . | . . . Drone Recoveries . | . . . Exploration | -11 -10 -10 ------------- Run | Yrd Mat Sub Turns Passed 1283 | 170 372 741 Spaces Moved 670 | 103 161 406 Core 10 | 10 . . Treads . | . . . Legs 660 | 93 161 406 Wheels . | . . . Hover . | . . . Flight . | . . . Fastest Speed 50 | 50 120 120 Average Speed 137 | 113 120 149 Slowest Speed 260 | 120 120 260 Overloaded Moves . | . . . Propulsion Burnouts . | . . . Robots Hopped . | . . . Potential Cave-ins . | . . . Cave-ins Triggered . | . . . Exploration Rate (%) 26 | 4 35 39 Regions Visited 2 Branch Regions 1 Pre-discovered Areas 1 | . . 1 Known Exits Taken . | . . . Unknown Exits Taken 2 | 1 1 . Scrap Searched 3 | . . 3 Spaces Dug . | . . . Terrain Destroyed . | . . . Melee . | . . . Projectile . | . . . AOE . | . . . Terrain Rammed . | . . . Walls Destroyed . | . . . Machines Disabled . | . . . Actions | -11 -10 -10 --------- Run | Yrd Mat Sub Total 937 | 129 324 484 Wait 176 | . 152 24 Move 668 | 102 160 406 Hop . | . . . Pick Up 7 | 6 1 . Fast Attach 8 | 7 . 1 Attach . | . . . Detach . | . . . Swap 5 | 1 1 3 Drop 2 | . 1 1 Fire 51 | 13 9 29 Melee 20 | . . 20 Ram . | . . . Kick . | . . . Crush . | . . . Escape Stasis . | . . . Rewire . | . . . Trap . | . . . Miscellaneous . | . . . Route ------- -11/Scrapyard -10/Materials -10/Subcaves History --------- Turn | Location | Event 4 | -11/Scrapyard | Discovered new exit (range 16) 171 | -11/Scrapyard | Entered Materials 305 | -10/Materials | Build established: Mutant 521 | -10/Materials | Discovered new exit (range 9) 543 | -10/Materials | Entered Subcaves 544 | -10/Subcaves | Approached by a straggling Scientist 578 | -10/Subcaves | Learned location of Zion (-7) 578 | -10/Subcaves | Met a Zionite searching for "candidates" 616 | -10/Subcaves | A swath of the cavern ceiling suddenly collapsed 1000 | -10/Subcaves | Core integrity fell below 50% 1030 | -10/Subcaves | Ambushed by angry Subdweller bent on revenge 1280 | -10/Subcaves | Disturbed a concealed Subdweller 1282 | -10/Subcaves | Core integrity fell below 20% 1284 | -10/Subcaves | Destroyed by NF-8IQ(R) with Subdweller Beam Cannon Last Messages --------------- 01003_ AH-EEB(R) destroyed. 01029_ Sneak attack on C4-O04(u). 01029_ Destroyed Lgt. Ion Engine. 01029_ C4-O04(u) cries out in pain. [Achievement: Art Critic] 01029_ C4-O04(u) destroyed. 01030_ H4-166(R) angrily emerges from the Twisted Machinery. 01030_ H4-166(R): "SUBMAD!" 01033_ Seismic Detector destroyed. 01043_ Critical hit (Meltdown: +300). 01051_ Sub. Optics melted. 01051_ Sub. Power Source melted. 01051_ H4-166(R) destroyed. 01072_ Sub. Power Source destroyed. 01076_ CT-5WY(R) destroyed. 01280_ NF-8IQ(R) angrily emerges from the Twisted Machinery. 01280_ Searching scrap... 01280_ Found Sub. Monowheel. 01280_ Found 65 Matter. 01281_ NF-8IQ(R): "SUBSUB!" Map ----- +----------------------------------------------------+ | ?????????????????????????????????????????????????? | | ?????????????????????????????????????????????????? | | ?????????????????????????????????????????????????? | | ?????????????????????????????????????????????????? | | ?????????????????????????????????????????????????? | | ?????????????????????????????????????????????????? | | ?????????????????????????????????????????????????? | | ?????????????????????????????????????????????????? | | ?????????????????????????????????????????????????? | | ?????????????????????????????????????????????????? | | ?????????????????????????????????????????????????? | | ?????????????????????????????????????????????????? | | ?????????????????????????????????????????????????? | | ?????????????????????????????????????????????????? | | ?????????????????????????????????????????????????? | | ?????????????????????????????????????????????????? | | ?????????????????????????????????????????????????? | | ?????????????????????????????????????????????????? | | ?????????????????????????????????????????????????? | | ?????????????????????????????????????????????????? | | ?????????????????????????????????????????????????? | | ?????????????????????????????????????????????????? | | ?????????????????????????????????????????????????? | | ???????????????????????#######???????????????????? | | ???????????????????????#=%# #???????????????????? | | ???????????????????????# @= $###?????????????????? | | ???????????????????????##R ### ####??????????????? | | ???????????????????????### # ##?????????????? | | ???????????????????????# # ## #?????????????? | | ???????????????????????# " < ##????????????? | | ???????????????????????# #????????????? | | ???????????????????????# ##????????????? | | ???????????????????????# ####?????????????? | | ???????????????????????# ##????????????????? | | ??????????????????????## ### #?????????????????? | | ????????????????????### #?# #?????????????????? | | ?????????????????#### ### #?????????????????? | | ????????????????## ##????????????????? | | ???????????????## ###??????????????? | | ???????????????# ##?????????????? | | ???????????????# #?????????????? | | ???????????????#### #?????????????? | | ??????????????????# ##?????????????? | | ??????????????????# ### #??????????????? | | ??????????????????## #?? ###??????????????? | | ???????????????###?## #?? ##????????????????? | | ??????????????## ### ##? #?????????????????? | | ??????????????# ## #?????????????????? | | ??????????????# ###?????????????????? | | ??????????????# ##???????????????????? | +----------------------------------------------------+ Best States ------------- Heat Dissipation 25 Energy Generation 15 Energy Capacity 250 Matter Stores 300 Matter Capacity 300 Sight Range 16 Terrain Scan Density 10 Evasion (%) 55 Item Schematics ----------------- None Robot Schematics ------------------ None Fabricated ------------ Nothing Repaired ---------- Nothing Studied --------- None Alien Tech Used ----------------- None Achievements -------------- Art Critic Challenges ------------ None Game ------ Seed WeightCompactCoupler Manual? 0 Play Time 00:08:01 Cumulative 301.1 hours Start 2025.12.23 @ 23:56:40 End 2025.12.24 @ 00:01:38 Sessions 1 Manual Loads 0 Difficulty Rogue Special Mode None Game No. 644 Rogue 644 Adventurer 0 Explorer 0 Win Type - Total 20 Types 14/0/4/1/1/0/0/0/0/0 Lore% 81 Gallery% 72 Achievement% 51 Wizard Run 0 Options --------- Layout 0 ASCII 0 Keyboard 0 Movement Numpad Keybinds 0 Fullscreen 2 Font 18/Terminus Map View 76x50 Zoom Use 0% Tactical HUD 1 Map Filters NONE Filters SATURATION(100) Steam 1 RUN: 1e8a9f66-239a-4e8e-b2c9-b51bc1a8d06b